bitfinex-derivatives/quotes_SOLF0:USTF0_20251209
["timestamp","ask_amount","ask_price","bid_price","bid_amount"]
[1765299953896,155.0875,144.65,144.53,3.02]
[1765299954291,0.0471703,144.6,144.58,0.04648948]
[1765299954484,0.04772251,144.6,144.58,0.04648948]
[1765299955893,0.04772251,144.6,144.58,3.06648948]
[1765299956590,58.28,144.66,144.58,3.06648948]
[1765299957491,0.04550215,144.63,144.58,3.06648948]
[1765299958687,1.0,144.7,144.6,3.02]
[1765299959791,0.04827877,144.66,144.64,0.0516855]
[1765299961091,0.04827877,144.66,144.56,3.02]
[1765299961296,6.2214,144.67,144.56,3.02]
[1765299961696,6.2218,144.66,144.56,3.02]
[1765299961893,0.04863368,144.62,144.6,0.05010532]
[1765299962197,0.04863368,144.62,144.6,0.05322008]
[1765299962584,6.224,144.61,144.51,3.02]
[1765299962781,96.8142,144.61,144.51,3.02]
[1765299963302,96.8349,144.58,144.45,3.02]
[1765299963495,96.8409,144.57,144.46,8.1755906]
[1765299963693,0.04648731,144.53,144.5,0.04457233]
[1765299963890,6.2276,144.52,144.42,3.02]
[1765299964398,103.1049,144.52,144.43,5.16369393]
[1765299964693,58.26,144.53,144.42,3.02]
[1765299964902,6.2267,144.55,144.46,0.0452761]
[1765299964903,0.0491636,144.49,144.46,0.0452761]
[1765299965195,0.0467201,144.49,144.46,3.1766164]
[1765299965699,155.1011,144.6,144.48,3.13]
[1765299966008,155.1011,144.6,144.5,3.13]
[1765299966009,58.28,144.6,144.5,3.13]
[1765299966191,58.28,144.6,144.51,5.16107077]
[1765299966392,58.28,144.6,144.5,3.13]
[1765299966688,0.04721356,144.56,144.54,0.04901123]
[1765299967798,103.0889,144.54,144.43,3.13]
[1765299967998,161.3689,144.54,144.43,3.13]
[1765299968204,96.8723,144.53,144.43,3.13]
[1765299968497,96.8409,144.57,144.43,3.13]
[1765299968697,0.04993796,144.51,144.49,3.17853213]
[1765299968999,0.04892226,144.51,144.49,3.18005989]
[1765299970394,16.0,144.58,144.49,3.18005989]
[1765299970599,64.505,144.59,144.5,5.16452978]
[1765299970786,64.505,144.59,144.49,3.13]
[1765299970990,64.505,144.59,144.5,5.16500063]
[1765299971206,64.505,144.59,144.5,3.13]
[1765299971510,0.04801986,144.56,144.53,0.0494168]
[1765299973001,0.04801986,144.56,144.53,3.1794168]
[1765299973703,0.04801986,144.56,144.53,0.0494168]
[1765299974804,0.04801986,144.56,144.53,3.1794168]
[1765299975302,0.04801986,144.56,144.55,3.13]
[1765299975502,0.04801986,144.56,144.55,8.29912267]
[1765299975907,58.28,144.64,144.55,8.29912267]
[1765299976109,58.28,144.64,144.56,5.16982812]
[1765299976305,64.5026,144.64,144.55,3.13]
[1765299976611,64.5026,144.64,144.56,5.17402755]
[1765299976612,58.28,144.64,144.56,5.17402755]
[1765299976812,58.28,144.64,144.55,3.13]
[1765299977009,0.04361464,144.61,144.58,0.04389233]
[1765299979207,0.04361464,144.61,144.52,6.00743971]
[1765299979401,96.8142,144.61,144.51,3.13]
[1765299979602,96.8142,144.61,144.52,5.17885935]
[1765299979802,96.8142,144.61,144.51,3.13]
[1765299980000,6.2248,144.59,144.52,5.17932748]
[1765299980208,58.28,144.58,144.54,0.04399045]
[1765299980413,6.2267,144.55,144.47,3.13]
[1765299980603,96.8544,144.55,144.48,5.18425808]
[1765299980799,96.8609,144.54,144.43,9.13743971]
[1765299981000,96.8609,144.54,144.44,5.18766732]
[1765299981212,96.8544,144.55,144.45,5.18766732]
[1765299981402,96.8544,144.55,144.43,3.13]
[1765299981403,0.05019989,144.51,144.49,0.04848847]
[1765299985909,0.05019989,144.51,144.49,3.05848847]
[1765299986420,6.27849989,144.51,144.49,0.04848847]
[1765299986920,6.2293,144.49,144.41,3.01]
[1765299987128,58.35019989,144.51,144.43,3.01]
[1765299987129,58.3,144.51,144.43,3.01]
[1765299987326,155.1481,144.56,144.45,3.01]
[1765299987515,6.2266,144.55,144.47,3.01]
[1765299987717,6.2266,144.55,144.48,8.19942765]
[1765299988012,0.0515125,144.53,144.5,0.04765802]
[1765299990614,6.2279,144.52,144.5,0.04765802]
[1765299991214,0.0515125,144.53,144.5,0.04765802]
[1765299992114,0.0515125,144.53,144.5,3.05765802]
[1765299992716,0.0515125,144.53,144.5,0.04765802]
[1765299994123,0.0515125,144.53,144.5,3.05765802]
[1765299994324,0.0515125,144.53,144.52,3.01]
[1765299995220,0.0515125,144.53,144.5,3.05765802]
[1765299995419,0.0515125,144.53,144.51,8.1899748]
[1765299995609,0.0515125,144.53,144.51,3.01]
[1765299995818,155.1078,144.62,144.52,8.19299115]
[1765299996127,58.3,144.62,144.54,3.01]
[1765299996812,0.0529198,144.59,144.57,3.05906819]
[1765299997012,0.0529198,144.59,144.57,0.04906819]
[1765299998218,96.8481,144.56,144.5,8.86e-05]
[1765299998420,58.3,144.57,144.48,3.01]
[1765299998722,58.3,144.57,144.49,8.19840185]
[1765299998920,58.3,144.57,144.49,3.01]
[1765299999221,0.05121077,144.54,144.52,0.04491344]
[1765300003026,6.27831077,144.54,144.52,0.04491344]
[1765300004029,6.27831077,144.54,144.43,8.03420807]
[1765300004030,6.2278,144.52,144.44,3.01]
[1765300004224,6.2278,144.52,144.46,3.01]
[1765300004420,6.2278,144.52,144.47,8.1732428]
[1765300004724,6.2274,144.53,144.48,8.1732428]
[1765300004920,155.22800934,144.52,144.49,0.04908563]
[1765300005116,155.1755,144.52,144.42,3.01]
[1765300005313,0.04376748,144.48,144.46,0.04940289]
[1765300005722,6.27316748,144.48,144.46,0.04940289]
[1765300006534,0.04376748,144.48,144.46,0.04940289]
[1765300006912,6.2304,144.46,144.38,3.01]
[1765300007219,6.2304,144.46,144.39,8.18482846]
[1765300007419,6.2304,144.46,144.4,5.17482846]
[1765300007729,58.3,144.47,144.41,8.18482846]
[1765300007928,0.04815159,144.45,144.43,0.05110172]
[1765300009919,6.27885159,144.45,144.43,0.05110172]
[1765300010728,0.04815159,144.45,144.43,0.05110172]
[1765300010920,58.36815159,144.45,144.43,0.05110172]
[1765300011331,0.04815159,144.45,144.43,0.05110172]
[1765300011824,96.9282,144.44,144.33,3.01]
[1765300012030,117.93897602,144.44,144.34,8.17749817]
[1765300012230,117.93897602,144.44,144.35,5.16749817]
[1765300012530,6.2322,144.42,144.35,5.16749817]
[1765300012720,0.04882863,144.4,144.37,0.04576591]
[1765300012924,0.04882863,144.4,144.37,3.31576591]
[1765300013125,0.04882863,144.4,144.39,3.27]
[1765300013825,58.32,144.44,144.4,3.27]
[1765300014028,58.32,144.48,144.4,3.27]
[1765300014834,0.04566404,144.45,144.43,0.04630413]
[1765300016132,58.34,144.44,144.36,3.15]
[1765300016425,58.34,144.44,144.38,3.15]
[1765300017022,64.5713,144.44,144.38,3.15]
[1765300017222,0.04640109,144.42,144.4,0.04756757]
[1765300019525,6.27850109,144.42,144.4,0.04756757]
[1765300020127,0.04640109,144.42,144.4,3.19756757]
[1765300021427,58.34,144.47,144.4,3.19756757]
[1765300022536,0.05048564,144.45,144.4,3.19756757]
[1765300022726,0.05048564,144.45,144.4,0.04756757]
[1765300023034,6.2312,144.44,144.4,3.19756757]
[1765300023545,0.05048564,144.45,144.4,3.19756757]
[1765300024337,0.05048564,144.45,144.42,3.15]
[1765300025634,6.2286,144.5,144.42,3.15]
[1765300025937,64.5686,144.5,144.44,3.15]
[1765300026143,58.34,144.5,144.44,3.15]
[1765300026437,58.34,144.5,144.46,3.15]
[1765300026637,0.05171934,144.49,144.48,3.15]
[1765300026934,0.04934556,144.5,144.48,3.15]
[1765300028234,64.566,144.56,144.5,3.15]
[1765300028433,58.34,144.56,144.5,3.15]
[1765300028636,155.1907,144.56,144.43,14.26540807]
[1765300028833,176.3313638,144.56,144.45,3.15]
[1765300029031,176.3313638,144.56,144.47,3.15]
[1765300029232,0.04836038,144.53,144.5,0.04511162]
[1765300029433,0.04836038,144.53,144.5,3.19511162]
[1765300029634,0.04836038,144.53,144.5,0.04511162]
[1765300031144,96.8754,144.52,144.43,3.24]
[1765300031344,96.8712,144.53,144.44,8.39028515]
[1765300031546,155.2144,144.52,144.44,3.24]
[1765300031837,58.34,144.52,144.44,3.24]
[1765300032144,0.04629675,144.49,144.47,0.05124404]
[1765300032344,6.27539675,144.49,144.47,0.05124404]
[1765300033250,6.2308,144.45,144.39,3.24]
[1765300033546,6.2308,144.45,144.4,8.39342956]
[1765300033740,6.2317,144.43,144.36,3.24]
[1765300034047,96.9152,144.46,144.37,8.39660156]
[1765300034240,0.05099317,144.43,144.4,0.05218322]
[1765300034839,0.05099317,144.43,144.4,3.29218322]
[1765300035439,58.34,144.45,144.4,3.29218322]
[1765300036150,64.5708,144.45,144.4,3.29218322]
[1765300036541,0.04384122,144.44,144.4,3.29218322]
[1765300036736,0.04384122,144.44,144.4,0.05218322]
[1765300037338,6.2321,144.42,144.4,0.05218322]
[1765300037546,96.953,144.41,144.33,3.24]
[1765300037741,6.2352,144.35,144.28,3.24]
[1765300037942,6.2352,144.35,144.29,5.16249051]
[1765300038248,58.34,144.35,144.28,3.24]
[1765300038446,58.34,144.35,144.19,12.11714918]
[1765300038447,97.0019,144.33,144.22,3.24]
[1765300038749,0.0472804,144.29,144.26,0.04500123]
[1765300038942,58.3872804,144.29,144.26,0.04500123]
[1765300039141,161.6539804,144.29,144.18,3.24]
[1765300039452,161.6067,144.29,144.19,8.40024918]
[1765300039651,161.6067,144.29,144.19,3.24]
[1765300040136,0.04527758,144.25,144.23,0.05238383]
[1765300040335,0.04527758,144.25,144.23,3.29238383]
[1765300040940,0.04527758,144.25,144.23,0.05238383]
[1765300041748,58.36,144.24,144.15,3.24]
[1765300041944,22.2382,144.28,144.17,3.24]
[1765300042148,58.36,144.27,144.19,3.24]
[1765300042446,58.36,144.27,144.21,3.24]
[1765300042652,27.53317629,144.33,144.21,3.24]
[1765300042844,96.976,144.37,144.26,3.28818566]
[1765300043046,96.9558,144.4,144.27,5.13474356]
[1765300043249,6.234,144.38,144.29,3.24]
[1765300043456,96.9722,144.38,144.29,3.24]
[1765300043755,96.9758,144.37,144.29,3.24]
[1765300044056,0.04823306,144.34,144.32,0.05243951]
[1765300045144,0.04823306,144.34,144.32,3.31243951]
[1765300045349,0.04823306,144.34,144.32,0.05243951]
[1765300045548,0.04823306,144.34,144.32,3.31243951]
[1765300045861,0.04823306,144.34,144.32,0.05243951]
[1765300046563,0.04823306,144.34,144.32,3.31243951]
[1765300046861,0.04823306,144.34,144.32,0.05243951]
[1765300049064,0.04823306,144.34,144.33,5.13810602]
[1765300049262,0.04823306,144.34,144.32,0.05243951]
[1765300051457,0.04823306,144.34,144.32,3.31243951]
[1765300051665,0.04823306,144.34,144.33,5.15462197]
[1765300053063,0.04823306,144.34,144.32,0.05243951]
[1765300053966,97.04423306,144.34,144.25,3.26]
[1765300054267,96.996,144.34,144.26,5.16137884]
[1765300054466,96.996,144.34,144.27,5.16137884]
[1765300054670,96.996,144.34,144.28,5.16137884]
[1765300054869,96.996,144.34,144.29,5.16137884]
[1765300055074,0.05248565,144.33,144.3,0.05046919]
[1765300055269,0.05248565,144.33,144.32,3.26]
[1765300055564,0.05248565,144.33,144.3,3.31046919]
[1765300055774,0.05248565,144.33,144.3,0.05046919]
[1765300055958,0.05248565,144.33,144.3,3.31046919]
[1765300056466,0.05248565,144.33,144.31,8.41383345]
[1765300056773,0.05248565,144.33,144.31,3.26]
[1765300057671,0.05248565,144.33,144.3,0.05046919]
[1765300058778,0.05248565,144.33,144.3,3.31046919]
[1765300059870,0.05248565,144.33,144.31,8.39036898]
[1765300060063,0.05248565,144.33,144.31,3.26]
[1765300060461,0.05248565,144.33,144.3,0.05046919]
[1765300060961,0.05248565,144.33,144.3,3.31046919]
[1765300062374,0.05248565,144.33,144.3,0.05046919]
[1765300063472,6.2365,144.32,144.3,0.05046919]
[1765300063669,58.4,144.31,144.3,0.05046919]
[1765300065575,58.4,144.31,144.3,3.31046919]
[1765300065776,0.05248565,144.33,144.3,3.31046919]
[1765300066672,0.00248565,144.33,144.32,3.26]
[1765300066876,0.00248565,144.33,144.32,8.40786496]
[1765300067077,64.6334,144.39,144.33,3.26]
[1765300067278,58.4,144.39,144.35,3.26]
[1765300067675,83.12,144.48,144.35,3.26]
[1765300067973,0.04435638,144.43,144.4,0.05283502]
[1765300068179,0.04435638,144.43,144.4,3.31283502]
[1765300069573,0.04435638,144.43,144.4,0.05283502]
[1765300070277,6.2321,144.42,144.4,0.05283502]
[1765300071469,0.04435638,144.43,144.4,3.31283502]
[1765300071974,58.4,144.47,144.42,3.26]
[1765300072171,58.4,144.47,144.44,3.26]
[1765300072375,58.4,144.47,144.38,3.26]
[1765300072580,58.4,144.47,144.4,3.26]
[1765300072777,58.4,144.47,144.41,8.41222894]
[1765300072971,0.04983188,144.45,144.43,3.26]
[1765300073171,0.04489262,144.45,144.43,3.26]
[1765300073374,0.04489262,144.45,144.43,3.30804909]
[1765300073771,0.04489262,144.45,144.43,0.04804909]
[1765300075578,6.27589262,144.45,144.43,0.04804909]
[1765300075883,0.04489262,144.45,144.39,3.05]
[1765300076284,0.04489262,144.45,144.4,5.17924101]
[1765300076581,0.04489262,144.45,144.39,3.05]
[1765300076780,0.04489262,144.45,144.41,0.04747229]
[1765300077474,6.2317,144.43,144.41,0.04747229]
[1765300077676,58.38,144.42,144.35,3.09]
[1765300077873,58.38,144.42,144.36,5.1799647]
[1765300078078,58.38,144.42,144.37,5.1799647]
[1765300078278,58.38,144.42,144.38,5.1799647]
[1765300078479,16.0,144.41,144.35,3.09]
[1765300078685,0.04693513,144.39,144.37,0.05220384]
[1765300078884,0.04693513,144.39,144.38,5.18376628]
[1765300079086,0.04693513,144.39,144.31,3.09]
[1765300079284,155.3517,144.38,144.28,3.09]
[1765300079477,96.9755,144.37,144.28,3.09]
[1765300079676,6.2352,144.35,144.28,3.09]
[1765300079880,96.9755,144.37,144.28,3.09]
[1765300079881,58.38,144.34,144.28,3.09]
[1765300080191,6.237,144.31,144.3,0.04444079]
[1765300080379,6.237,144.31,144.29,0.04414564]
[1765300080580,58.38,144.3,144.29,0.05037353]
[1765300081793,58.38,144.3,144.29,3.14037353]
[1765300082289,0.05140866,144.31,144.29,4.52037353]
[1765300082481,0.05140866,144.31,144.29,3.14037353]
[1765300082680,6.233,144.4,144.3,1.38]
[1765300082886,58.38,144.4,144.29,3.09]
[1765300083687,0.05070618,144.36,144.34,3.09]
[1765300087093,58.38,144.4,144.34,3.09]
[1765300087990,0.05037953,144.38,144.34,3.09]
[1765300088487,0.05037953,144.38,144.33,0.04409377]
[1765300089390,97.02297953,144.38,144.33,0.04409377]
[1765300089995,6.2351,144.35,144.33,0.04409377]
[1765300090489,6.2343,144.37,144.33,0.04409377]
[1765300091490,0.05037953,144.38,144.33,0.04409377]
[1765300091491,6.2347,144.36,144.33,0.04409377]
[1765300091893,97.02167953,144.38,144.33,0.04409377]
[1765300093490,6.2351,144.35,144.33,0.04409377]
[1765300093799,64.6351,144.35,144.33,0.04409377]
[1765300095596,58.4,144.35,144.33,0.04409377]
[1765300098301,64.6352,144.35,144.33,0.04409377]
[1765300099600,58.4,144.35,144.33,0.04409377]
[1765300099805,58.4,144.35,144.33,3.11409377]
[1765300100301,58.4,144.35,144.34,8.24011484]
[1765300101405,58.4,144.35,144.34,5.17011484]
[1765300101604,58.4,144.35,144.33,0.04409377]
[1765300101805,58.4,144.35,144.33,3.11409377]
[1765300102106,58.4,144.35,144.34,5.16986754]
[1765300102402,58.4,144.35,144.34,8.23986754]
[1765300102805,58.4,144.35,144.34,5.16986754]
[1765300102998,58.4,144.35,144.33,0.04409377]
[1765300103198,58.4,144.35,144.34,5.17082304]
[1765300103403,58.4,144.35,144.33,0.04409377]
[1765300104299,64.635,144.35,144.33,0.04409377]
[1765300105005,58.4,144.35,144.33,0.04409377]
[1765300105408,0.05037953,144.38,144.33,3.20409377]
[1765300105607,58.4,144.37,144.35,3.16]
[1765300105807,58.4,144.37,144.33,3.20409377]
[1765300106007,58.4,144.37,144.34,8.33327928]
[1765300106199,58.4,144.37,144.33,0.04409377]
[1765300106399,58.4,144.37,144.34,5.17455608]
[1765300106596,58.4,144.37,144.33,0.04409377]
[1765300106800,6.2346,144.36,144.34,5.17513889]
[1765300107000,58.4,144.37,144.33,0.04409377]
[1765300108307,58.4,144.37,144.33,3.20409377]
[1765300108507,0.05037953,144.38,144.35,3.16]
[1765300108701,0.05037953,144.38,144.36,5.17733918]
[1765300108902,0.05037953,144.38,144.35,3.16]
[1765300109103,0.05037953,144.38,144.36,5.17720527]
[1765300109410,0.05037953,144.38,144.35,3.16]
[1765300109611,0.05037953,144.38,144.36,5.17858751]
[1765300109907,0.05037953,144.38,144.37,5.17760432]
[1765300110810,0.05037953,144.38,144.37,8.33760432]
[1765300112419,145.59149395,144.4,144.37,5.17760432]
[1765300112600,145.59149395,144.4,144.38,5.17760432]
[1765300112806,145.59149395,144.4,144.36,3.20496068]
[1765300113115,145.59149395,144.4,144.37,5.17555261]
[1765300113311,145.63735964,144.4,144.38,5.17555261]
[1765300113613,145.63735964,144.4,144.39,5.17565886]
[1765300113815,145.63735964,144.4,144.39,8.33565886]
[1765300114205,87.23735964,144.4,144.39,8.33565886]
[1765300114817,87.23735964,144.4,144.39,5.17565886]
[1765300115012,87.23735964,144.4,144.39,2.52638629]
[1765300115313,87.23735964,144.4,144.36,3.20496068]
[1765300115509,58.4,144.39,144.36,3.20496068]
[1765300115707,58.4,144.39,144.36,0.04496068]
[1765300116819,6.2337,144.38,144.36,0.04496068]
[1765300117705,6.2342,144.37,144.3,3.16]
[1765300117911,58.4,144.36,144.3,3.16]
[1765300118611,0.05117529,144.34,144.32,0.04868077]
[1765300122515,0.05117529,144.34,144.32,3.20868077]
[1765300122917,0.05117529,144.34,144.32,0.04868077]
[1765300125121,0.05117529,144.34,144.32,3.20868077]
[1765300126507,0.05117529,144.34,144.32,0.04868077]
[1765300127814,0.05117529,144.34,144.29,36.05]
[1765300127815,97.0052,144.33,144.29,36.05]
[1765300128218,6.2367,144.31,144.29,36.05]
[1765300128515,58.42,144.3,144.29,36.05]
[1765300128717,58.42,144.3,144.29,41.26056721]
[1765300130722,58.42,144.3,144.29,44.42056721]
[1765300131521,0.05242742,144.31,144.29,44.42056721]
[1765300131716,0.05242742,144.31,144.3,5.21056721]
[1765300136819,0.05242742,144.31,144.29,36.05]
[1765300136820,6.28922742,144.31,144.29,36.05]
[1765300139829,6.28922742,144.31,144.28,0.04744356]
[1765300140031,6.28922742,144.31,144.29,5.21350715]
[1765300140231,0.05242742,144.31,144.28,3.22744356]
[1765300140532,58.44,144.3,144.29,5.21069365]
[1765300141119,58.44,144.3,144.29,8.39069365]
[1765300141323,58.44,144.3,144.29,5.21069365]
[1765300141629,58.44,144.3,144.28,0.04744356]
[1765300142228,58.44,144.3,144.22,3.18]
[1765300142526,97.0317,144.29,144.23,5.1974194]
[1765300142731,6.2389,144.26,144.24,5.1974194]
[1765300142932,58.44,144.25,144.23,32.44]
[1765300143125,58.44,144.25,144.24,5.20225237]
[1765300143328,58.44,144.25,144.23,32.48956826]
[1765300144831,16.05204197,144.26,144.24,3.18]
[1765300144832,0.05204197,144.26,144.24,3.18]
[1765300145136,58.44,144.29,144.26,3.18]
[1765300145433,58.44,144.3,144.27,8.37559349]
[1765300145622,58.44,144.3,144.24,3.18]
[1765300145826,58.44,144.3,144.25,5.19690685]
[1765300146026,58.44,144.3,144.23,32.44]
[1765300146226,0.04919896,144.29,144.26,0.05036323]
[1765300147636,6.2382,144.28,144.26,0.05036323]
[1765300147833,16.0,144.27,144.26,0.05036323]
[1765300148041,6.2382,144.28,144.26,0.05036323]
[1765300148234,58.44,144.27,144.26,0.05036323]
[1765300148438,6.2382,144.28,144.26,0.05036323]
[1765300148833,58.44,144.27,144.26,0.05036323]
[1765300151249,58.50919896,144.29,144.26,0.05036323]
[1765300151747,6.2381,144.28,144.26,0.05036323]
[1765300154251,16.0,144.27,144.26,0.05036323]
[1765300156436,6.2395,144.25,144.23,32.44]
[1765300156741,58.46,144.24,144.23,32.44]
[1765300156940,58.46,144.24,144.23,10.8127]
[1765300157246,6.2401,144.23,144.21,29.8]
[1765300157436,6.2925532,144.23,144.21,29.84828335]
[1765300159735,0.0524532,144.23,144.22,3.03]
[1765300159954,97.003,144.33,144.23,3.03]
[1765300160238,58.46,144.3,144.25,3.03]
[1765300160437,6.2386,144.27,144.21,32.83]
[1765300160633,58.46,144.26,144.23,3.03]
[1765300160842,58.46,144.26,144.21,29.8]
[1765300160843,58.46,144.26,144.25,3.03]
[1765300161245,58.46,144.26,144.24,0.05025198]
[1765300162535,64.699,144.26,144.24,0.05025198]
[1765300163036,80.699,144.26,144.24,0.05025198]
[1765300163341,64.699,144.26,144.24,0.05025198]
[1765300163647,58.46,144.26,144.24,3.08025198]
[1765300165440,58.46,144.26,144.25,5.16583101]
[1765300165850,58.46,144.26,144.24,0.05025198]
[1765300166343,58.46,144.26,144.24,3.30025198]
[1765300166742,58.46,144.26,144.24,0.05025198]
[1765300167451,64.6989,144.26,144.24,0.05025198]
[1765300167649,58.46,144.26,144.21,29.8]
[1765300167949,58.46,144.26,144.22,5.17452405]
[1765300168153,97.0594,144.25,144.19,32.36]
[1765300168451,97.0594,144.25,144.2,5.17927129]
[1765300168645,0.04546495,144.24,144.21,5.17927129]
[1765300168848,0.04546495,144.24,144.21,0.0473752]
[1765300169035,6.2406,144.22,144.21,0.0473752]
[1765300169246,64.7006,144.22,144.21,0.0473752]
[1765300169438,58.46,144.22,144.19,32.36]
[1765300169640,6.2414,144.2,144.19,32.36]
[1765300171944,6.2414,144.2,144.18,0.05157096]
[1765300171945,6.2434,144.16,144.14,26.85]
[1765300172144,58.48,144.15,144.14,26.85]
[1765300172652,74.48,144.15,144.14,26.85]
[1765300173442,97.1316,144.14,144.06,3.25]
[1765300173649,58.48,144.15,144.08,3.25]
[1765300173841,97.113,144.17,144.08,3.25]
[1765300173842,58.48,144.17,144.08,3.25]
[1765300174039,58.48,144.17,144.1,3.25]
[1765300174240,61.05,144.17,144.12,3.25]
[1765300174444,61.05,144.17,144.13,5.18818168]
[1765300174649,61.05,144.17,144.14,5.18818168]
[1765300174959,0.05264932,144.16,144.15,8.36748652]
[1765300175850,2.57,144.23,144.16,3.25]
[1765300176049,22.08323209,144.25,144.18,3.25]
[1765300176050,58.48,144.22,144.18,3.25]
[1765300176254,58.48,144.22,144.1,29.92]
[1765300176255,58.48,144.22,144.2,3.25]
[1765300176849,58.53222023,144.22,144.2,3.30147365]
[1765300177657,58.53222023,144.22,144.21,8.3621831]
[1765300178857,58.53222023,144.22,144.21,5.1121831]
[1765300179051,58.53222023,144.22,144.2,0.05147365]
[1765300181161,64.77322023,144.22,144.2,0.05147365]
[1765300182260,97.0893,144.2,144.12,3.25]
[1765300182455,113.0966,144.19,144.12,3.25]
[1765300182654,58.5,144.18,144.12,3.25]
[1765300183060,6.2436,144.15,144.1,33.17]
[1765300183268,58.54713383,144.14,144.11,0.05235751]
[1765300184466,6.2447,144.13,144.11,0.05235751]
[1765300185163,58.54713383,144.14,144.11,0.05235751]
[1765300185164,58.54713383,144.14,144.11,3.30235751]
[1765300185661,58.5,144.13,144.11,3.30235751]
[1765300187957,58.5,144.13,144.11,0.05235751]
[1765300190649,58.5,144.13,144.11,3.30235751]
[1765300191467,0.04713383,144.14,144.11,3.30235751]
[1765300191767,64.7646,144.13,144.11,0.05235751]
[1765300194966,64.7646,144.13,144.11,3.24235751]
[1765300195466,64.7646,144.13,144.11,0.05235751]
[1765300198169,48.68,144.13,144.11,3.24235751]
[1765300198356,3.26,144.22,144.12,5.23676026]
[1765300198562,3.26,144.22,144.07,135.6724]
[1765300198563,58.52,144.21,144.13,5.23676026]
[1765300198756,58.52,144.21,144.14,5.23676026]
[1765300198757,61.78,144.21,144.14,5.23676026]
[1765300198972,61.78,144.21,144.15,5.23676026]
[1765300199171,3.26,144.2,144.16,5.23676026]
[1765300199372,0.04402995,144.19,144.17,5.28102183]
[1765300199566,0.05204388,144.19,144.18,5.23407128]
[1765300199971,3.31204388,144.19,144.17,0.04614276]
[1765300200371,0.05204388,144.19,144.18,5.23393336]
[1765300201070,3.31204388,144.19,144.17,0.04614276]
[1765300201278,25.55424388,144.19,144.17,0.04614276]
[1765300201466,3.26,144.18,144.07,38.5]
[1765300201770,58.52,144.17,144.08,5.23488244]
[1765300201974,58.52,144.17,144.09,5.23488244]
[1765300202275,58.52,144.17,144.1,5.23488244]
[1765300202469,0.04653392,144.14,144.12,0.04493124]
[1765300202674,0.04653392,144.14,144.13,5.23488244]
[1765300202875,3.30653392,144.14,144.13,5.23488244]
[1765300203370,0.04653392,144.14,144.13,5.23488244]
[1765300203571,58.56653392,144.14,144.13,5.23488244]
[1765300203770,61.82653392,144.14,144.13,5.23488244]
[1765300204176,3.26,144.13,144.12,0.04493124]
[1765300204672,3.26,144.13,144.07,38.5]
[1765300205472,9.5044,144.13,144.07,38.5]
[1765300206075,3.26,144.13,144.07,38.5]
[1765300206272,0.04653392,144.14,144.07,38.5]
[1765300206584,0.04653392,144.14,144.05,6.14066925]
[1765300206771,0.04538707,144.11,144.07,6.2468]
[1765300206967,16.0,144.19,144.05,6.14066925]
[1765300207174,58.52,144.18,144.07,6.14066925]
[1765300207372,58.52,144.18,144.09,6.246]
[1765300207980,0.04932168,144.15,144.12,0.04419296]
[1765300212280,3.08932168,144.15,144.12,0.04419296]
[1765300213575,9.33302168,144.15,144.12,0.04419296]
[1765300213778,0.04932168,144.15,144.12,0.04419296]
[1765300216177,0.04932168,144.15,144.13,5.20798124]
[1765300216378,0.04932168,144.15,144.14,5.20798124]
[1765300216571,3.08932168,144.15,144.14,5.20798124]
[1765300217587,0.04932168,144.15,144.14,5.20798124]
[1765300218683,3.08932168,144.15,144.14,5.20798124]
[1765300219386,0.04932168,144.15,144.14,5.20798124]
[1765300221683,3.08932168,144.15,144.14,5.20798124]
[1765300222284,3.08932168,144.15,144.14,1.92798124]
[1765300222486,3.04,144.13,144.12,0.04419296]
[1765300222687,3.04,144.12,144.1,31.65]
[1765300223292,67.8049,144.12,144.1,31.65]
[1765300223683,64.7649,144.12,144.08,32.95]
[1765300223997,0.05018993,144.11,144.08,32.95]